fUST/lending_fUST_20260203
["ID","MTS","AMOUNT","RATE_DAILY","PERIOD"]
[404373844,1770084643989,-500.0,0.00087671,120]
[404373846,1770084643999,-500.0,0.00087671,120]
[404373848,1770084644008,-500.0,0.00087671,120]
[404373851,1770084644019,-3217.1,0.00087671,120]
[404373853,1770084644029,-500.0,0.00087671,120]
[404373855,1770084644038,-1000.0,0.00087671,2]
[404373857,1770084644047,-500.0,0.00087671,120]
[404373858,1770084644057,-1530.94,0.00087671,120]
[404373860,1770084644066,-500.0,0.00087671,120]
[404373862,1770084644075,-1338.88388491,0.00087671,120]
[404373865,1770084644092,-2423.20344557,0.00087671,120]
[404373867,1770084644103,-10045.68266952,0.00087671,120]
[404373869,1770084644112,-500.0,0.00087671,120]
[404373871,1770084644125,-1028.9,0.00087671,120]
[404373873,1770084644134,-1594.22,0.000889,30]
[404373875,1770084644143,-437.18670233,0.00089999,120]
[404373877,1770084644152,-514.19010031,0.00089999,120]
[404373879,1770084644162,-471.99640263,0.00089999,120]
[404373881,1770084644171,-152.94031873,0.00089999,120]
[404373883,1770084644180,-6946.48012536,0.0009,120]
[404373885,1770084644191,-2000.0,0.0009,120]
[404373887,1770084644200,-10000.0,0.0009,2]
[404373889,1770084644209,-195.89701598,0.00090294,2]
[404373891,1770084644218,-150.0,0.00091461,30]
[404373893,1770084644227,-1000.0,0.00093,120]
[404373895,1770084644236,-14706.19441032,0.0009305,2]
[404373897,1770084644245,-10672.81,0.0009315,120]
[404373898,1770084644254,-793.69,0.0009315,120]
[404373899,1770084644264,-500.0,0.0009315,120]
[404373900,1770084644273,-897.43,0.0009315,120]
[404373901,1770084644282,-500.0,0.0009315,120]
[404373902,1770084644292,-1481.48,0.0009315,120]
[404373903,1770084644301,-576.45,0.0009315,120]
[404373904,1770084644310,-500.0,0.0009315,120]
[404373905,1770084644321,-1778.9,0.0009315,120]
[404373906,1770084644330,-500.0,0.0009315,120]
[404373907,1770084644339,-500.0,0.0009315,120]
[404373908,1770084644348,-500.0,0.0009315,120]
[404373909,1770084644358,-3217.1,0.0009315,120]
[404373910,1770084644367,-500.0,0.0009315,120]
[404373911,1770084644375,-500.49375459,0.0009315,2]
[404373912,1770084644384,-500.0,0.0009315,120]
[404373913,1770084644394,-1530.94,0.0009315,120]
[404373915,1770084644404,-500.0,0.0009315,120]
[404373916,1770084644413,-13807.77,0.0009315,120]
[404373918,1770084644421,-500.0,0.0009315,120]
[404373920,1770084644431,-1028.9,0.0009315,120]
[404373921,1770084644439,-6152.31294782,0.0009488,60]
[404373923,1770084644448,-1000.0,0.00095543,120]
[404373925,1770084644457,-1000.0,0.00095543,120]
[404373927,1770084644466,-1000.0,0.00095543,120]
[404373928,1770084644475,-1000.0,0.0009589,120]
[404373930,1770084644485,-6069.21271911,0.000975,30]
[404373932,1770084644494,-1000.0,0.00098,120]
[404373934,1770084644503,-1000.0,0.00098,120]
[404373936,1770084644512,-150.0,0.00098304,30]
[404373938,1770084644521,-10672.81,0.0009863,120]
[404373940,1770084644530,-10672.81,0.0009863,120]
[404373942,1770084644539,-793.69,0.0009863,120]
[404373944,1770084644548,-500.0,0.0009863,120]
[404373946,1770084644559,-897.43,0.0009863,120]
[404373948,1770084644568,-500.0,0.0009863,120]
[404373950,1770084644578,-1481.48,0.0009863,120]
[404373952,1770084644587,-576.45,0.0009863,120]
[404373954,1770084644597,-500.0,0.0009863,120]
[404373955,1770084644606,-1778.9,0.0009863,120]
[404373957,1770084644615,-500.0,0.0009863,120]
[404373959,1770084644624,-500.0,0.0009863,120]
[404373961,1770084644633,-500.0,0.0009863,120]
[404373963,1770084644643,-3217.1,0.0009863,120]
[404373965,1770084644651,-500.0,0.0009863,120]
[404373967,1770084644660,-500.0,0.0009863,120]
[404373969,1770084644669,-1530.94,0.0009863,120]
[404373971,1770084644677,-500.0,0.0009863,120]
[404373973,1770084644686,-13807.77,0.0009863,120]
[404373975,1770084644695,-500.0,0.0009863,120]
[404373977,1770084644704,-1028.9,0.0009863,120]
[404373978,1770084644713,-20000.0,0.000988,120]
[404373980,1770084644721,-300.0,0.00099,120]
[404373988,1770084644795,-5000.0,0.00099,30]
[404373990,1770084644805,-266.28,0.00099053,120]
[404373992,1770084644814,-525.0,0.00099989,120]
[404373994,1770084644823,-1000.0,0.001,120]
[404373996,1770084644832,-543.33499682,0.001,120]
[404373998,1770084644840,-33551.91369267,0.001,120]
[404374000,1770084644849,-915.72051398,0.001,120]
[404374002,1770084644858,-200.0,0.001,120]
[404374004,1770084644868,-1000.0,0.001,120]
[404374005,1770084644878,-10000.0,0.001,2]
[404374007,1770084644887,-195.89701598,0.00102935,2]
[404374009,1770084644897,-150.0,0.00103629,30]
[404374011,1770084644907,-1000.0,0.00104109,120]
[404374013,1770084644918,-10672.81,0.00104109,120]
[404374015,1770084644926,-10672.81,0.00104109,120]
[404374017,1770084644935,-793.69,0.00104109,120]
[404374019,1770084644945,-500.0,0.00104109,120]
[404374021,1770084644954,-897.43,0.00104109,120]
[404374022,1770084644963,-500.0,0.00104109,120]
[404374024,1770084644972,-1481.48,0.00104109,120]
[404374026,1770084644981,-576.45,0.00104109,120]
[404374028,1770084644991,-500.0,0.00104109,120]
[404374030,1770084645000,-1778.9,0.00104109,120]
[404374032,1770084645009,-499.3166042,0.00104109,120]
[404374034,1770084645018,-500.0,0.00104109,120]
[404374036,1770084645028,-500.0,0.00104109,120]
[404374038,1770084645037,-3217.1,0.00104109,120]
[404374040,1770084645046,-500.0,0.00104109,120]
[404374042,1770084645055,-500.0,0.00104109,120]
[404374044,1770084645063,-1530.94,0.00104109,120]
[404374046,1770084645072,-500.0,0.00104109,120]
[404374047,1770084645081,-13807.77,0.00104109,120]
[404374049,1770084645091,-500.0,0.00104109,120]
[404374051,1770084645101,-1028.9,0.00104109,120]
[404374053,1770084645111,-154.7,0.00105,60]
[404374055,1770084645119,-1000.0,0.00105097,120]
[404374057,1770084645129,-1000.0,0.00105097,120]
[404374059,1770084645138,-1000.0,0.00105097,120]
[404374061,1770084645147,-715.0,0.00105097,120]
[404374063,1770084645156,-666.594782,0.0010567,120]
[404374065,1770084645165,-7695.737904,0.00106172,120]
[404374067,1770084645174,-200.0,0.00106833,120]
[404374068,1770084645183,-200.0,0.00106833,120]
[404374070,1770084645192,-200.0,0.00106833,120]
[404374072,1770084645202,-200.0,0.00106848,120]
[404374074,1770084645212,-200.0,0.00106848,120]
[404374076,1770084645221,-200.0,0.00106848,120]
[404374078,1770084645231,-22186.198989,0.00107331,120]
[404374080,1770084645239,-150.0,0.00108998,30]
[404374082,1770084645248,-200.0,0.0010903,120]
[404374084,1770084645257,-10672.81,0.00109589,120]
[404374086,1770084645268,-10672.81,0.00109589,120]
[404374088,1770084645277,-793.69,0.00109589,120]
[404374090,1770084645286,-497.90202022,0.00109589,120]
[404374092,1770084645295,-897.43,0.00109589,120]
[404374094,1770084645304,-209.43502761,0.00109589,120]
[404374096,1770084645312,-1481.48,0.00109589,120]
[404374097,1770084645321,-576.45,0.00109589,120]
[404374099,1770084645330,-500.0,0.00109589,120]
[404374101,1770084645339,-1778.9,0.00109589,120]
[404374103,1770084645348,-500.0,0.00109589,120]
[404374105,1770084645357,-500.0,0.00109589,120]
[404374107,1770084645366,-3217.1,0.00109589,120]
[404374109,1770084645375,-500.0,0.00109589,120]
[404374111,1770084645384,-500.0,0.00109589,120]
[404374113,1770084645393,-1530.94,0.00109589,120]
[404374115,1770084645403,-500.0,0.00109589,120]
[404374117,1770084645412,-13807.77,0.00109589,120]
[404374118,1770084645421,-500.0,0.00109589,120]
[404374120,1770084645430,-1028.9,0.00109589,120]
[404374122,1770084645439,-10000.0,0.0011,2]
[404374124,1770084645448,-1000.0,0.00112328,120]
[404374126,1770084645457,-150.0,0.00113592,30]
[404374128,1770084645467,-305.857599,0.00114475,60]
[404374130,1770084645477,-305.857599,0.00114968,60]
[404374132,1770084645487,-2000.0,0.00115,120]
[404374134,1770084645495,-10672.81,0.00115068,120]
[404374136,1770084645505,-10672.81,0.00115068,120]
[404374138,1770084645514,-793.69,0.00115068,120]
[404374140,1770084645522,-897.43,0.00115068,120]
[404374142,1770084645531,-1481.48,0.00115068,120]
[404374144,1770084645540,-576.45,0.00115068,120]
[404374145,1770084645549,-500.0,0.00115068,120]
[404374147,1770084645559,-1778.9,0.00115068,120]
[404374149,1770084645567,-551.81855476,0.00115068,120]
[404374151,1770084645577,-500.0,0.00115068,120]
[404374153,1770084645586,-3217.1,0.00115068,120]
[404374155,1770084645595,-500.0,0.00115068,120]
[404374157,1770084645604,-500.0,0.00115068,120]
[404374159,1770084645613,-1530.94,0.00115068,120]
[404374161,1770084645621,-500.0,0.00115068,120]
[404374163,1770084645630,-13807.77,0.00115068,120]
[404374165,1770084645639,-500.0,0.00115068,120]
[404374166,1770084645648,-1028.9,0.00115068,120]
[404374168,1770084645658,-305.857599,0.00115297,60]
[404374170,1770084645666,-195.89701598,0.00115576,2]
[404374172,1770084645676,-295.0,0.00115607,120]
[404374174,1770084645685,-305.857599,0.0011579,60]
[404374176,1770084645694,-305.857599,0.0011579,60]
[404374178,1770084645703,-305.857599,0.0011579,60]
[404374180,1770084645712,-305.857599,0.0011579,60]
[404374182,1770084645721,-305.857599,0.00116118,60]
[404374184,1770084645731,-305.857599,0.0011694,60]
[404374185,1770084645740,-305.857599,0.0011694,60]
[404374187,1770084645748,-305.857599,0.0011694,60]
[404374189,1770084645757,-305.857599,0.0011694,60]
[404374191,1770084645767,-305.857599,0.0011694,60]
[404374194,1770084645776,-305.857599,0.0011694,60]
[404374197,1770084645785,-305.857599,0.0011694,60]
[404374199,1770084645794,-305.857599,0.0011694,60]
[404374201,1770084645803,-611.715198,0.0011694,60]
[404374203,1770084645812,-611.715198,0.0011694,60]
[404374205,1770084645822,-305.857599,0.0011694,60]
[404374207,1770084645831,-611.715198,0.0011694,60]
[404374209,1770084645840,-305.857599,0.0011694,60]
[404374211,1770084645849,-305.857599,0.0011694,60]
[404374213,1770084645859,-305.857599,0.0011694,60]
[404374215,1770084645867,-305.857599,0.0011694,60]
[404374217,1770084645879,-305.857599,0.0011694,60]
[404374218,1770084645888,-305.857599,0.0011694,60]
[404374220,1770084645897,-305.857599,0.0011694,60]
[404374222,1770084645906,-305.857599,0.0011694,60]
[404374224,1770084645918,-305.857599,0.0011694,60]
[404374226,1770084645928,-305.857599,0.0011694,60]
[404374228,1770084645937,-305.857599,0.0011694,60]
[404374230,1770084645947,-305.857599,0.0011694,60]
[404374232,1770084645956,-305.857599,0.0011694,60]
[404374234,1770084645965,-305.857599,0.0011694,60]
[404374236,1770084645974,-305.857599,0.0011694,60]
[404374238,1770084645983,-302.184419,0.0011694,60]
[404374240,1770084645992,-305.857599,0.00118091,60]
[404374242,1770084646001,-305.857599,0.00118091,60]
[404374244,1770084646011,-305.857599,0.00118091,60]
[404374246,1770084646022,-305.857599,0.00118091,60]
[404374248,1770084646031,-305.857599,0.00118091,60]
[404374250,1770084646040,-305.857599,0.00118091,60]
[404374252,1770084646049,-305.857599,0.00118091,60]
[404374254,1770084646059,-305.857599,0.00118091,60]
[404374256,1770084646068,-305.857599,0.00118091,60]
[404374258,1770084646077,-305.857599,0.00118091,60]
[404374260,1770084646086,-305.857599,0.00118091,60]
[404374261,1770084646095,-305.857599,0.00118091,60]
[404374263,1770084646104,-305.857599,0.00118091,60]
[404374265,1770084646113,-305.857599,0.00118091,60]
[404374267,1770084646122,-305.857599,0.00118091,60]
[404374269,1770084646132,-305.857599,0.00119242,60]
[404374271,1770084646141,-176.41,0.00119372,30]
[404374273,1770084646150,-300.0,0.0012,60]
[404374275,1770084646159,-10000.0,0.0012,2]
[404374277,1770084646168,-1000.0,0.00120547,120]
[404374279,1770084646177,-10672.81,0.00120547,120]
[404374281,1770084646187,-793.69,0.00120547,120]
[404374283,1770084646196,-897.43,0.00120547,120]
[404374285,1770084646204,-1481.48,0.00120547,120]
[404374287,1770084646213,-576.45,0.00120547,120]
[404374289,1770084646222,-500.0,0.00120547,120]
[404374291,1770084646231,-1778.9,0.00120547,120]
[404374293,1770084646240,-500.0,0.00120547,120]
[404374294,1770084646250,-3217.1,0.00120547,120]
[404374296,1770084646259,-500.0,0.00120547,120]
[404374298,1770084646269,-500.0,0.00120547,120]
[404374300,1770084646278,-1530.94,0.00120547,120]
[404374302,1770084646287,-500.0,0.00120547,120]
[404374304,1770084646302,-13807.77,0.00120547,120]
[404374306,1770084646311,-500.0,0.00120547,120]
[404374308,1770084646322,-1028.9,0.00120547,120]
[404374310,1770084646332,-205.81,0.00124954,30]
[404374312,1770084646341,-10672.81,0.00126027,120]
[404374314,1770084646351,-793.69,0.00126027,120]
[404374316,1770084646360,-897.43,0.00126027,120]
[404374318,1770084646370,-1481.48,0.00126027,120]
[404374320,1770084646380,-576.45,0.00126027,120]
[404374322,1770084646391,-500.0,0.00126027,120]
[404374324,1770084646401,-1778.9,0.00126027,120]
[404374326,1770084646411,-500.0,0.00126027,120]
[404374328,1770084646420,-3217.1,0.00126027,120]
[404374330,1770084646430,-500.0,0.00126027,120]
[404374332,1770084646441,-500.0,0.00126027,120]
[404374334,1770084646450,-1530.94,0.00126027,120]
[404374336,1770084646460,-500.0,0.00126027,120]
[404374338,1770084646470,-13807.77,0.00126027,120]
[404374340,1770084646479,-500.0,0.00126027,120]
[404374342,1770084646489,-1028.9,0.00126027,120]
[404374344,1770084646499,-200.0,0.001282,120]
[404374352,1770084646569,-200.0,0.001282,120]
[404374354,1770084646579,-200.0,0.001282,120]
[404374356,1770084646587,-195.89701598,0.00128217,2]
[404374358,1770084646597,-200.0,0.00128218,120]
[404374360,1770084646606,-200.0,0.00128218,120]
[404374362,1770084646616,-200.0,0.00128218,120]
[404374364,1770084646626,-1000.0,0.00128767,120]
[404374366,1770084646635,-10000.0,0.0013,2]
[404374368,1770084646644,-235.21,0.00130536,30]
[404374370,1770084646654,-10672.81,0.00131506,120]
[404374372,1770084646665,-793.69,0.00131506,120]
[404374374,1770084646674,-897.43,0.00131506,120]
[404374376,1770084646683,-1481.48,0.00131506,120]
[404374378,1770084646693,-576.45,0.00131506,120]
[404374380,1770084646702,-500.0,0.00131506,120]
[404374382,1770084646711,-1778.9,0.00131506,120]
[404374384,1770084646720,-500.0,0.00131506,120]
[404374386,1770084646729,-3217.1,0.00131506,120]
[404374388,1770084646739,-500.0,0.00131506,120]
[404374390,1770084646749,-500.0,0.00131506,120]
[404374392,1770084646759,-1530.94,0.00131506,120]
[404374394,1770084646772,-500.0,0.00131506,120]
[404374396,1770084646791,-13807.77,0.00131506,120]
[404374398,1770084646803,-500.0,0.00131506,120]
[404374400,1770084646813,-1028.9,0.00131506,120]
[404374402,1770084646826,-154.7,0.00133,60]
[404374404,1770084646836,-264.61,0.00136119,30]
[404374405,1770084646846,-190.32303204,0.00136986,120]
[404374406,1770084646855,-10672.81,0.00136986,120]
[404374407,1770084646867,-793.69,0.00136986,120]
[404374408,1770084646877,-897.43,0.00136986,120]
[404374409,1770084646888,-1481.48,0.00136986,120]
[404374410,1770084646897,-576.45,0.00136986,120]
[404374411,1770084646907,-500.0,0.00136986,120]
[404374413,1770084646917,-1778.9,0.00136986,120]
[404374415,1770084646931,-500.0,0.00136986,120]
[404374417,1770084646941,-3217.1,0.00136986,120]
[404374419,1770084646950,-500.0,0.00136986,120]
[404374421,1770084646960,-500.0,0.00136986,120]
[404374423,1770084646969,-1530.94,0.00136986,120]
[404374425,1770084646979,-500.0,0.00136986,120]
[404374427,1770084646989,-13807.77,0.00136986,120]
[404374429,1770084646999,-500.0,0.00136986,120]
[404374431,1770084647009,-1028.9,0.00136986,120]
[404374433,1770084647027,-400.010483,0.00136986,120]
[404374435,1770084647038,-200.0,0.0014,120]
[404374437,1770084647047,-2000.0,0.0014,120]
[404374439,1770084647058,-10000.0,0.0014,2]
[404374441,1770084647069,-195.89701598,0.00140859,2]
[404374443,1770084647079,-294.01,0.00141701,30]
[404374445,1770084647088,-10672.81,0.00142465,120]
[404374447,1770084647098,-793.69,0.00142465,120]
[404374449,1770084647107,-897.43,0.00142465,120]
[404374451,1770084647116,-1481.48,0.00142465,120]
[404374453,1770084647125,-576.45,0.00142465,120]
[404374455,1770084647134,-500.0,0.00142465,120]
[404374457,1770084647143,-1778.9,0.00142465,120]
[404374459,1770084647152,-500.0,0.00142465,120]
[404374461,1770084647161,-3217.1,0.00142465,120]
[404374463,1770084647170,-500.0,0.00142465,120]
[404374465,1770084647179,-500.0,0.00142465,120]
[404374467,1770084647189,-1530.94,0.00142465,120]
[404374469,1770084647198,-500.0,0.00142465,120]
[404374471,1770084647207,-13807.77,0.00142465,120]
[404374473,1770084647216,-500.0,0.00142465,120]
[404374475,1770084647226,-1028.9,0.00142465,120]
[404374476,1770084647236,-219.96390704,0.00142877,120]
[404374478,1770084647246,-1585.92,0.00143,30]
[404374480,1770084647255,-400.010483,0.00144196,120]
[404374483,1770084647264,-1585.92,0.00145,30]
[404374485,1770084647278,-150.0,0.00145521,120]
[404374487,1770084647287,-10672.81,0.00147945,120]
[404374489,1770084647296,-793.69,0.00147945,120]
[404374491,1770084647305,-897.43,0.00147945,120]
[404374493,1770084647314,-1070.71012511,0.00147945,120]
[404374552,1770084647878,-438.87021569,0.00039838,30]
[404374772,1770084649945,-280.70606371,0.00039838,30]
[404374774,1770084649956,-4280.4237206,0.00039838,30]
[404374776,1770084649965,-394.35420686,0.00051677,2]
[404374784,1770084650026,-236.27,0.00056489,10]
[404374785,1770084650035,-305.857599,0.0011579,60]
[404374787,1770084650045,-101.31336626,0.00147945,120]
[404375658,1770084783330,168.02488473,0.00013273,2]
[404375659,1770084783377,500.0,0.00013273,2]
[404375660,1770084783405,500.0,0.00013699,2]
[404375661,1770084783621,500.0,0.00013273,2]
[404375662,1770084783652,500.45251857,0.00013821,2]
[404375663,1770084783681,500.0,0.00013699,2]
[404375664,1770084783738,500.0,0.00013699,2]
[404375665,1770084783793,1000.0,0.00014247,2]
[404375666,1770084785642,500.0,0.00013699,2]
[404375668,1770084962998,501.76365168,0.00013699,2]
[404375670,1770085023406,1000.0,0.00013821,2]
[404375671,1770085023435,764.41375311,0.00014368,2]
[404375672,1770085023470,160.39462294,0.00013699,2]
[404375673,1770085023498,500.0,0.00013273,2]
[404375674,1770085023710,500.0,0.00013699,2]
[404375675,1770085023743,500.84679195,0.00014247,2]
[404375676,1770085023778,500.0,0.00013273,2]
[404375677,1770085023808,1000.0,0.00013821,2]
[404375678,1770085023838,1000.0,0.00014247,2]
[404375679,1770085023866,1241.4327344,0.00014368,2]
[404375680,1770085023894,500.0,0.00014795,2]
[404375681,1770085023955,500.0,0.00013699,2]
[404375682,1770085086413,500.0,0.00013699,2]
[404375683,1770085086448,820.12567473,0.00014247,2]
[404375687,1770085263736,500.0,0.00013699,2]
[404375688,1770085263794,348.51110734,0.00014247,2]
[404375776,1770085385486,213.03801676,0.00040014,120]
[404375780,1770085650518,712.75477515,0.00039994,30]
[404375781,1770085661674,813.02404618,0.00018,2]
[404375782,1770085661700,25000.0,0.00018,2]
[404375783,1770085661726,25000.0,0.00018,2]
[404375784,1770085661751,25000.0,0.00018,2]
[404375785,1770085661775,25000.0,0.00018,2]
[404375786,1770085666681,-9797.42090148,0.00018,2]
[404375787,1770085666918,152.64905611,0.00039994,60]
[404375788,1770085667135,-10000.01,0.00018,2]
[404375789,1770085667468,-10000.01,0.00018,2]
[404375790,1770085667677,-10000.01,0.00018,2]
[404375791,1770085667920,-10000.01,0.00018,2]
[404375792,1770085668525,-2000.04833755,0.00018,2]
[404375793,1770085669449,-10000.01,0.00018,2]
[404375794,1770085669665,-10000.01,0.00018,2]
[404375795,1770085669963,-10000.01,0.00018,2]
[404375796,1770085670182,-10000.01,0.00018,2]
[404375798,1770085686991,500.0,0.00013699,2]
[404375802,1770085693267,500.0,0.00013273,2]
[404375803,1770085693929,500.0,0.00013273,2]
[404375804,1770085701620,152.17692527,0.00039994,30]
[404375805,1770085701660,167.29260286,0.00039994,31]
[404375806,1770085701697,1242.43648608,0.00039994,60]
[404375807,1770085702674,-2142.92227158,0.000176,2]
[404375808,1770085702703,-300.0,0.00017999,2]
[404375809,1770085702754,-5114.16545684,0.00018,2]
[404375810,1770085702859,-10000.01,0.00018,2]
[404375811,1770085702965,-10000.01,0.00018,2]
[404375812,1770085703091,-10000.01,0.00018,2]
[404375813,1770085703226,-10000.01,0.00018,2]
[404375814,1770085703349,-10000.01,0.00018,2]
[404375815,1770085703470,-10000.01,0.00018,2]
[404375816,1770085703578,-10000.01,0.00018,2]
[404375817,1770085703703,-10000.01,0.00018,2]
[404375818,1770085706365,1000.0,0.00039994,30]
[404375819,1770085706591,1000.0,0.00039994,30]
[404375820,1770085706825,218.62902907,0.00039994,30]
[404375825,1770085712223,259.57193636,0.00039994,60]
[404375829,1770085717367,151.71729691,0.00039994,30]
[404375859,1770085721114,23500.0,0.0001747,2]
[404375868,1770085729878,-10000.01,0.0001747,2]
[404375869,1770085730016,-10000.01,0.0001747,2]
[404375870,1770085730156,-10000.01,0.0001747,2]
[404375871,1770085730269,-10000.01,0.0001747,2]
[404375872,1770085730382,-10000.01,0.0001747,2]
[404375873,1770085730483,-10000.01,0.0001747,2]
[404375874,1770085730628,-10000.01,0.0001747,2]
[404375875,1770085730790,-4915.88546897,0.0001747,2]
[404375876,1770085730824,-168.23906206,0.00018,2]
[404375877,1770085730878,-10000.01,0.00018,2]
[404375878,1770085732874,-10000.01,0.00018,2]
[404375884,1770085743965,500.0,0.00013273,2]
[404375885,1770085743995,500.0,0.00013699,2]
[404375886,1770085744023,166.05567171,0.00013273,2]
[404375887,1770085744056,1103.48666991,0.00013821,2]
[404375888,1770085744083,616.32310821,0.00014247,2]
[404375889,1770085744111,500.0,0.00013699,2]
[404375890,1770085744139,436.12552914,0.00013699,2]
[404375891,1770085744167,500.0,0.00013699,2]
[404375892,1770085744198,500.0,0.00013699,2]
[404375893,1770085744228,500.0,0.00013273,2]
[404375894,1770085744258,502.67054401,0.00014247,2]
[404375895,1770085744287,1000.0,0.00014247,2]
[404375896,1770085744316,500.0,0.00014247,2]
[404375897,1770085744345,1000.0,0.00013821,2]
[404375898,1770085744373,502.84944873,0.00014795,2]
[404375899,1770085744405,1017.09664357,0.00014368,2]
[404375900,1770085744564,500.0,0.00013699,2]
[404375901,1770085746780,445.98241214,0.00013699,2]
[404375902,1770085747299,500.0,0.00013699,2]
[404375903,1770085747712,500.0,0.00013273,2]
[404375904,1770085747842,500.0,0.00013699,2]
[404375905,1770085748164,500.0,0.00013699,2]
[404375906,1770085748385,500.0,0.00013273,2]
[404375907,1770085748448,500.0,0.00013821,2]
[404375909,1770085750908,500.0,0.00013699,2]
[404375910,1770085750941,500.0,0.00013273,2]
[404375911,1770085750969,500.63710298,0.00014247,2]
[404375912,1770085750997,795.30906235,0.00013821,2]
[404375913,1770085751101,-5000.0,0.0001782,2]
[404375914,1770085751141,-0.01,0.00017999,2]
[404375915,1770085751227,500.33382077,0.00013273,2]
[404375916,1770085751282,-299.99,0.00017999,2]
[404375917,1770085751317,-9400.03,0.00018,2]
[404375918,1770085751415,-10000.01,0.00018,2]
[404375919,1770085751521,-10000.01,0.00018,2]
[404375920,1770085751610,-10000.01,0.00018,2]
[404375921,1770085751704,-10000.01,0.00018,2]
[404375922,1770085751885,445.60473055,0.00013699,2]
[404375923,1770085751926,-10000.01,0.00018,2]
[404375924,1770085754047,500.0,0.00013273,2]
[404375925,1770085754076,3000.0,0.00016012,2]
[404375926,1770085754112,1000.0,0.00013821,2]
[404375927,1770085754140,631.25658532,0.0001656,2]
[404375928,1770085754169,1500.0,0.00014368,2]
[404375929,1770085754216,1336.26867061,0.00014916,2]
[404375930,1770085754239,663.73132939,0.00014916,2]
[404375931,1770085754274,2500.0,0.00015464,2]
[404375932,1770085754355,500.0,0.00013699,2]
[404375933,1770085754407,1023.45765406,0.00014247,2]
[404375934,1770085754936,500.0,0.00013273,2]
[404375935,1770085757230,500.0,0.00013699,2]
[404375936,1770085757324,502.71899874,0.00013699,2]
[404375937,1770085757640,532.3582484,0.00013699,2]
[404375938,1770085757862,502.45744002,0.00013273,2]
[404375939,1770085758369,500.0,0.00013699,2]
[404375940,1770085758490,500.0,0.00013699,2]
[404375941,1770085758883,500.0,0.00013699,2]
[404375942,1770085758939,908.6878629,0.00014247,2]
[404375943,1770085758975,500.0,0.00013699,2]
[404375944,1770085760041,500.0,0.00013699,2]
[404375945,1770085760181,-10000.01,0.00018,2]
[404375946,1770085760342,-10000.01,0.00018,2]
[404375947,1770085761086,500.59918383,0.00013273,2]
[404375948,1770085761134,500.0,0.00013273,2]
[404375949,1770085761193,500.0,0.00013821,2]
[404375950,1770085761273,300.0,0.00013673,2]
[404375951,1770085763431,560.05447856,0.00013273,2]
[404375952,1770085769348,-10000.01,0.00018,2]
[404375953,1770085769513,-5000.0,0.0001782,2]
[404375954,1770085769546,-0.01,0.00018,2]
[404375955,1770085769604,-10000.01,0.00018,2]
[404375956,1770085769732,-10000.01,0.00018,2]
[404375957,1770085769831,-10000.01,0.00018,2]
[404375958,1770085770015,-10000.01,0.00018,2]
[404375959,1770085770070,-10000.01,0.00018,2]
[404375960,1770085770204,-10000.01,0.00018,2]
[404375961,1770085770309,-10000.01,0.00018,2]